fUST/lending_fUST_20250605
["ID","MTS","AMOUNT","RATE_DAILY","PERIOD"]
[364524845,1749126654277,-440.0,0.00020273,2]
[364524847,1749126654287,-440.0,0.00020273,2]
[364524849,1749126654296,-440.0,0.00020273,2]
[364524851,1749126654306,-474.25,0.00020273,2]
[364524854,1749126654315,-582.27,0.00020273,2]
[364524855,1749126654325,-440.0,0.00020273,2]
[364524857,1749126654335,-440.0,0.00020273,2]
[364524859,1749126654344,-440.0,0.00020273,2]
[364524861,1749126654353,-440.0,0.00020273,2]
[364524863,1749126654365,-454.45,0.00020273,2]
[364524865,1749126654376,-3904.28,0.00020273,2]
[364524867,1749126654385,-440.0,0.00020273,2]
[364524869,1749126654394,-219.2560603,0.00020273,2]
[364524871,1749126654405,-440.0,0.00020273,2]
[364524873,1749126654415,-443.09,0.00020273,2]
[364524875,1749126654424,-440.0,0.00020273,2]
[364524877,1749126654433,-440.0,0.00020273,2]
[364524879,1749126654443,-1601.79,0.00020273,2]
[364524881,1749126654453,-440.0,0.00020273,2]
[364524883,1749126654462,-417.52044542,0.00020273,2]
[364524885,1749126654471,-690.08,0.00020273,2]
[364524887,1749126654480,-1463.54,0.00020273,2]
[364524889,1749126654490,-440.0,0.00020273,2]
[364524891,1749126654501,-151.0,0.00020273,2]
[364524893,1749126654511,-3830.81,0.00020273,2]
[364524895,1749126654520,-151.0,0.00020273,2]
[364524896,1749126654530,-500.23,0.00020273,2]
[364524897,1749126654540,-440.0,0.00020273,2]
[364524898,1749126654549,-440.0,0.00020273,2]
[364524899,1749126654559,-601.71,0.00020273,2]
[364524900,1749126654568,-440.0,0.00020273,2]
[364524901,1749126654578,-440.0,0.00020273,2]
[364524902,1749126654587,-10825.13,0.00020273,2]
[364524903,1749126654596,-468.23,0.00020273,2]
[364524904,1749126654606,-738.51,0.00020273,2]
[364524905,1749126654615,-869.47,0.00020273,2]
[364524906,1749126654625,-440.0,0.00020273,2]
[364524907,1749126654635,-568.84,0.00020273,2]
[364524908,1749126654644,-440.0,0.00020273,2]
[364524909,1749126654653,-3468.15,0.00020273,2]
[364524910,1749126654663,-440.0,0.00020273,2]
[364524911,1749126654673,-440.0,0.00020273,2]
[364524912,1749126654683,-440.0,0.00020273,2]
[364524913,1749126654693,-665.26,0.00020273,2]
[364524914,1749126654703,-772.56,0.00020273,2]
[364524915,1749126654713,-691.71,0.00020273,2]
[364524916,1749126654723,-619.68,0.00020273,2]
[364524917,1749126654732,-3643.74,0.00020273,2]
[364524918,1749126654742,-440.0,0.00020273,2]
[364524919,1749126654751,-2712.99,0.00020273,2]
[364524920,1749126654760,-440.0,0.00020273,2]
[364524921,1749126654769,-440.0,0.00020273,2]
[364524922,1749126654778,-440.0,0.00020273,2]
[364524923,1749126654787,-151.0,0.000203,4]
[364524924,1749126654796,-3635.09,0.00020379,2]
[364524925,1749126654805,-503.48503408,0.00020419,2]
[364524926,1749126654814,-501.54911396,0.00020419,2]
[364524927,1749126654823,-400.0,0.00020547,2]
[364524928,1749126654832,-400.0,0.00020547,2]
[364524929,1749126654841,-400.0,0.00020547,2]
[364524930,1749126654850,-400.0,0.00020547,2]
[364524931,1749126654859,-391.23862199,0.00020547,2]
[364524932,1749126654868,-500.0,0.00020547,2]
[364524933,1749126654877,-440.0,0.00020547,2]
[364524934,1749126654886,-446.95,0.00020547,2]
[364524935,1749126654895,-198.96,0.00020547,2]
[364524936,1749126654905,-440.0,0.00020547,2]
[364524937,1749126654914,-290.0,0.00020547,2]
[364524938,1749126654924,-440.0,0.00020547,2]
[364524939,1749126654933,-160.494634,0.00020547,2]
[364524940,1749126654941,-440.0,0.00020547,2]
[364524941,1749126655050,-320.0,0.00020547,2]
[364524942,1749126655061,-440.0,0.00020547,2]
[364524943,1749126655070,-440.0,0.00020547,2]
[364524944,1749126655081,-457.80384565,0.00020547,2]
[364524945,1749126655090,-151.0,0.00020547,2]
[364524946,1749126655100,-488.16,0.00020547,2]
[364524947,1749126655109,-440.0,0.00020547,2]
[364524948,1749126655118,-440.0,0.00020547,2]
[364524949,1749126655128,-151.0,0.00020547,2]
[364524950,1749126655138,-1078.06,0.00020547,2]
[364524951,1749126655147,-151.0,0.00020547,2]
[364524952,1749126655156,-440.0,0.00020547,2]
[364524953,1749126655165,-759.89,0.00020547,2]
[364524954,1749126655175,-151.0,0.00020547,2]
[364524955,1749126655184,-440.0,0.00020547,2]
[364524957,1749126655193,-440.0,0.00020547,2]
[364524959,1749126655204,-543.28,0.00020547,2]
[364524961,1749126655213,-440.0,0.00020547,2]
[364524963,1749126655222,-440.0,0.00020547,2]
[364524964,1749126655232,-440.0,0.00020547,2]
[364524966,1749126655241,-440.0,0.00020547,2]
[364524968,1749126655250,-469.06,0.00020547,2]
[364524969,1749126655259,-440.0,0.00020547,2]
[364524970,1749126655269,-2040.51,0.00020547,2]
[364524971,1749126655278,-151.0,0.00020547,2]
[364524972,1749126655287,-440.0,0.00020547,2]
[364524973,1749126655296,-440.0,0.00020547,2]
[364524974,1749126655306,-440.0,0.00020547,2]
[364524975,1749126655318,-3404.87,0.00020547,2]
[364524976,1749126655327,-440.0,0.00020547,2]
[364524977,1749126655336,-2840.11,0.00020547,2]
[364524978,1749126655346,-440.0,0.00020547,2]
[364524979,1749126655355,-440.0,0.00020547,2]
[364524980,1749126655366,-440.0,0.00020547,2]
[364524981,1749126655376,-1060.39,0.00020547,2]
[364524982,1749126655385,-1617.19,0.00020547,2]
[364524983,1749126655394,-440.0,0.00020547,2]
[364524984,1749126655403,-1389.09,0.00020547,2]
[364524985,1749126655413,-296.781168,0.00020547,2]
[364524986,1749126655422,-440.0,0.00020547,2]
[364524987,1749126655431,-440.0,0.00020547,2]
[364524988,1749126655439,-440.0,0.00020547,2]
[364524989,1749126655450,-474.25,0.00020547,2]
[364524990,1749126655460,-582.27,0.00020547,2]
[364524991,1749126655469,-246.128561,0.00020547,2]
[364524992,1749126655478,-440.0,0.00020547,2]
[364524993,1749126655487,-440.0,0.00020547,2]
[364524994,1749126655496,-440.0,0.00020547,2]
[364524995,1749126655505,-454.45,0.00020547,2]
[364524996,1749126655514,-3904.28,0.00020547,2]
[364524997,1749126655523,-440.0,0.00020547,2]
[364524998,1749126655532,-440.0,0.00020547,2]
[364524999,1749126655542,-443.09,0.00020547,2]
[364525000,1749126655551,-440.0,0.00020547,2]
[364525001,1749126655560,-440.0,0.00020547,2]
[364525002,1749126655569,-1601.79,0.00020547,2]
[364525003,1749126655578,-440.0,0.00020547,2]
[364525004,1749126655587,-324.245001,0.00020547,2]
[364525005,1749126655596,-324.245001,0.00020547,2]
[364525006,1749126655605,-690.08,0.00020547,2]
[364525007,1749126655615,-1463.54,0.00020547,2]
[364525008,1749126655624,-440.0,0.00020547,2]
[364525009,1749126655633,-3830.81,0.00020547,2]
[364525010,1749126655642,-500.23,0.00020547,2]
[364525011,1749126655652,-440.0,0.00020547,2]
[364525012,1749126655661,-440.0,0.00020547,2]
[364525013,1749126655671,-601.71,0.00020547,2]
[364525014,1749126655681,-440.0,0.00020547,2]
[364525015,1749126655691,-440.0,0.00020547,2]
[364525016,1749126655700,-10825.13,0.00020547,2]
[364525017,1749126655710,-468.23,0.00020547,2]
[364525018,1749126655720,-738.51,0.00020547,2]
[364525019,1749126655730,-869.47,0.00020547,2]
[364525020,1749126655739,-440.0,0.00020547,2]
[364525021,1749126655750,-568.84,0.00020547,2]
[364525022,1749126655760,-440.0,0.00020547,2]
[364525023,1749126655770,-3468.15,0.00020547,2]
[364525024,1749126655782,-440.0,0.00020547,2]
[364525025,1749126655792,-440.0,0.00020547,2]
[364525026,1749126655802,-440.0,0.00020547,2]
[364525027,1749126655812,-665.26,0.00020547,2]
[364525028,1749126655821,-772.56,0.00020547,2]
[364525029,1749126655832,-691.71,0.00020547,2]
[364525030,1749126655841,-619.68,0.00020547,2]
[364525031,1749126655851,-3643.74,0.00020547,2]
[364525032,1749126655861,-440.0,0.00020547,2]
[364525033,1749126655871,-2712.99,0.00020547,2]
[364525034,1749126655882,-440.0,0.00020547,2]
[364525035,1749126655891,-440.0,0.00020547,2]
[364525036,1749126655900,-440.0,0.00020547,2]
[364525037,1749126655910,-2007.43511669,0.00020584,2]
[364525038,1749126655919,-507.57968082,0.00020592,2]
[364525039,1749126655929,-1000.0,0.00020592,2]
[364525040,1749126655938,-500.0,0.00020599,2]
[364525041,1749126655948,-3354.05,0.000206,2]
[364525042,1749126655960,-151.0,0.000207,4]
[364525043,1749126655969,-163.582618,0.00020762,2]
[364525044,1749126655979,-163.582618,0.00020762,2]
[364525045,1749126655989,-440.0,0.00020821,2]
[364525046,1749126655998,-160.0,0.00020821,2]
[364525047,1749126656007,-440.0,0.00020821,2]
[364525048,1749126656017,-488.16,0.00020821,2]
[364525049,1749126656027,-440.0,0.00020821,2]
[364525050,1749126656036,-1078.06,0.00020821,2]
[364525051,1749126656045,-440.0,0.00020821,2]
[364525052,1749126656054,-759.89,0.00020821,2]
[364525053,1749126656064,-440.0,0.00020821,2]
[364525054,1749126656073,-440.0,0.00020821,2]
[364525055,1749126656082,-543.28,0.00020821,2]
[364525056,1749126656092,-440.0,0.00020821,2]
[364525057,1749126656102,-440.0,0.00020821,2]
[364525058,1749126656111,-440.0,0.00020821,2]
[364525059,1749126656120,-440.0,0.00020821,2]
[364525060,1749126656130,-469.06,0.00020821,2]
[364525061,1749126656139,-440.0,0.00020821,2]
[364525062,1749126656149,-2040.51,0.00020821,2]
[364525063,1749126656158,-440.0,0.00020821,2]
[364525064,1749126656168,-440.0,0.00020821,2]
[364525065,1749126656177,-440.0,0.00020821,2]
[364525066,1749126656186,-3404.87,0.00020821,2]
[364525067,1749126656197,-440.0,0.00020821,2]
[364525068,1749126656208,-2840.11,0.00020821,2]
[364525069,1749126656218,-440.0,0.00020821,2]
[364525070,1749126656228,-440.0,0.00020821,2]
[364525071,1749126656238,-430.0,0.00020821,2]
[364525072,1749126656247,-1060.39,0.00020821,2]
[364525073,1749126656257,-1617.19,0.00020821,2]
[364525074,1749126656266,-440.0,0.00020821,2]
[364525075,1749126656275,-1389.09,0.00020821,2]
[364525076,1749126656285,-264.76314045,0.00020821,2]
[364525077,1749126656294,-440.0,0.00020821,2]
[364525078,1749126656303,-440.0,0.00020821,2]
[364525079,1749126656312,-474.25,0.00020821,2]
[364525080,1749126656395,-582.27,0.00020821,2]
[364525081,1749126656406,-440.0,0.00020821,2]
[364525082,1749126656417,-440.0,0.00020821,2]
[364525083,1749126656426,-440.0,0.00020821,2]
[364525084,1749126656436,-454.45,0.00020821,2]
[364525085,1749126656447,-3904.28,0.00020821,2]
[364525086,1749126656458,-440.0,0.00020821,2]
[364525087,1749126656468,-440.0,0.00020821,2]
[364525088,1749126656477,-443.09,0.00020821,2]
[364525089,1749126656487,-440.0,0.00020821,2]
[364525090,1749126656497,-440.0,0.00020821,2]
[364525091,1749126656506,-1601.79,0.00020821,2]
[364525092,1749126656516,-440.0,0.00020821,2]
[364525093,1749126656525,-690.08,0.00020821,2]
[364525094,1749126656535,-1463.54,0.00020821,2]
[364525095,1749126656546,-320.0,0.00020821,2]
[364525096,1749126656558,-3830.81,0.00020821,2]
[364525097,1749126656568,-500.23,0.00020821,2]
[364525098,1749126656578,-440.0,0.00020821,2]
[364525099,1749126656587,-440.0,0.00020821,2]
[364525100,1749126656596,-601.71,0.00020821,2]
[364525101,1749126656606,-440.0,0.00020821,2]
[364525102,1749126656616,-440.0,0.00020821,2]
[364525103,1749126656626,-10825.13,0.00020821,2]
[364525104,1749126656636,-468.23,0.00020821,2]
[364525105,1749126656646,-738.51,0.00020821,2]
[364525106,1749126656656,-869.47,0.00020821,2]
[364525107,1749126656665,-440.0,0.00020821,2]
[364525108,1749126656675,-568.84,0.00020821,2]
[364525109,1749126656684,-440.0,0.00020821,2]
[364525110,1749126656694,-3468.15,0.00020821,2]
[364525111,1749126656705,-440.0,0.00020821,2]
[364525112,1749126656715,-440.0,0.00020821,2]
[364525113,1749126656725,-440.0,0.00020821,2]
[364525114,1749126656735,-665.26,0.00020821,2]
[364525115,1749126656745,-772.56,0.00020821,2]
[364525116,1749126656755,-691.71,0.00020821,2]
[364525117,1749126656766,-619.68,0.00020821,2]
[364525118,1749126656775,-3643.74,0.00020821,2]
[364525119,1749126656785,-571.21138795,0.00020821,2]
[364525120,1749126656795,-2712.99,0.00020821,2]
[364525121,1749126656805,-440.0,0.00020821,2]
[364525122,1749126656814,-440.0,0.00020821,2]
[364525123,1749126656824,-440.0,0.00020821,2]
[364525124,1749126656834,-151.0,0.00021,3]
[364525125,1749126656843,-500.0,0.00021094,2]
[364525126,1749126656852,-500.0,0.00021094,2]
[364525127,1749126656862,-169.73,0.00021094,2]
[364525128,1749126656871,-440.0,0.00021095,2]
[364525129,1749126656881,-360.37,0.00021095,2]
[364525130,1749126656891,-488.16,0.00021095,2]
[364525131,1749126656901,-151.0,0.00021095,2]
[364525132,1749126656913,-1078.06,0.00021095,2]
[364525133,1749126656922,-440.0,0.00021095,2]
[364525134,1749126656932,-759.89,0.00021095,2]
[364525135,1749126656941,-440.0,0.00021095,2]
[364525136,1749126656950,-543.28,0.00021095,2]
[364525137,1749126656959,-440.0,0.00021095,2]
[364525138,1749126656969,-490.27,0.00021095,2]
[364525139,1749126656978,-469.06,0.00021095,2]
[364525140,1749126656987,-440.0,0.00021095,2]
[364525141,1749126656995,-2040.51,0.00021095,2]
[364525142,1749126657005,-440.0,0.00021095,2]
[364525143,1749126657014,-440.0,0.00021095,2]
[364525144,1749126657024,-440.0,0.00021095,2]
[364525145,1749126657034,-3404.87,0.00021095,2]
[364525146,1749126657043,-440.0,0.00021095,2]
[364525147,1749126657053,-2840.11,0.00021095,2]
[364525148,1749126657061,-440.0,0.00021095,2]
[364525149,1749126657070,-440.0,0.00021095,2]
[364525150,1749126657079,-1060.39,0.00021095,2]
[364525151,1749126657088,-1617.19,0.00021095,2]
[364525152,1749126657097,-440.0,0.00021095,2]
[364525153,1749126657106,-1389.09,0.00021095,2]
[364525154,1749126657115,-440.0,0.00021095,2]
[364525155,1749126657124,-440.0,0.00021095,2]
[364525156,1749126657133,-474.25,0.00021095,2]
[364525157,1749126657142,-582.27,0.00021095,2]
[364525158,1749126657151,-348.79,0.00021095,2]
[364525159,1749126657161,-151.0,0.00021095,2]
[364525160,1749126657169,-440.0,0.00021095,2]
[364525161,1749126657178,-440.0,0.00021095,2]
[364525162,1749126657187,-454.45,0.00021095,2]
[364525163,1749126657196,-3904.28,0.00021095,2]
[364525164,1749126657207,-440.0,0.00021095,2]
[364525165,1749126657217,-440.0,0.00021095,2]
[364525166,1749126657226,-443.09,0.00021095,2]
[364525167,1749126657235,-440.0,0.00021095,2]
[364525168,1749126657244,-440.0,0.00021095,2]
[364525169,1749126657253,-1601.79,0.00021095,2]
[364525170,1749126657262,-440.0,0.00021095,2]
[364525171,1749126657272,-151.0,0.00021095,2]
[364525172,1749126657282,-163.582618,0.00021095,2]
[364525173,1749126657291,-163.582618,0.00021095,2]
[364525174,1749126657299,-690.08,0.00021095,2]
[364525175,1749126657308,-1463.54,0.00021095,2]
[364525176,1749126657317,-151.0,0.00021095,2]
[364525177,1749126657326,-3830.81,0.00021095,2]
[364525178,1749126657336,-294.369148,0.00021095,2]
[364525179,1749126657345,-500.23,0.00021095,2]
[364525180,1749126657354,-440.0,0.00021095,2]
[364525181,1749126657366,-440.0,0.00021095,2]
[364525182,1749126657376,-277.136073,0.00021095,2]
[364525183,1749126657385,-601.71,0.00021095,2]
[364525184,1749126657395,-277.136073,0.00021095,2]
[364525185,1749126657405,-440.0,0.00021095,2]
[364525186,1749126657414,-440.0,0.00021095,2]
[364525187,1749126657424,-10825.13,0.00021095,2]
[364525188,1749126657433,-468.23,0.00021095,2]
[364525189,1749126657443,-738.51,0.00021095,2]
[364525190,1749126657452,-869.47,0.00021095,2]
[364525191,1749126657461,-440.0,0.00021095,2]
[364525192,1749126657470,-568.84,0.00021095,2]
[364525193,1749126657480,-440.0,0.00021095,2]
[364525194,1749126657489,-3468.15,0.00021095,2]
[364525195,1749126657498,-440.0,0.00021095,2]
[364525196,1749126657507,-440.0,0.00021095,2]
[364525197,1749126657517,-440.0,0.00021095,2]
[364525198,1749126657527,-665.26,0.00021095,2]
[364525199,1749126657536,-772.56,0.00021095,2]
[364525200,1749126657546,-691.71,0.00021095,2]
[364525201,1749126657555,-619.68,0.00021095,2]
[364525202,1749126657565,-3643.74,0.00021095,2]
[364525203,1749126657646,-3929.637417,0.00021095,2]
[364525204,1749126657657,-3929.637417,0.00021095,2]
[364525205,1749126657667,-2712.99,0.00021095,2]
[364525206,1749126657677,-440.0,0.00021095,2]
[364525207,1749126657686,-440.0,0.00021095,2]
[364525208,1749126657696,-440.0,0.00021095,2]
[364525209,1749126657706,-151.0,0.00021106,2]
[364525210,1749126657715,-151.0,0.00021106,2]
[364525211,1749126657725,-151.0,0.00021106,2]
[364525212,1749126657734,-151.0,0.00021106,2]
[364525213,1749126657744,-151.0,0.00021106,2]
[364525214,1749126657753,-158.187817,0.00021106,2]
[364525215,1749126657762,-388.529233,0.00021106,2]
[364525216,1749126657772,-388.529233,0.00021106,2]
[364525217,1749126657781,-1500.0,0.0002114,2]
[364525218,1749126657790,-800.0,0.00021164,2]
[364525219,1749126657799,-500.0,0.00021223,2]
[364525220,1749126657808,-500.0,0.00021223,2]
[364525221,1749126657818,-500.0,0.00021223,2]
[364525222,1749126657828,-500.0,0.00021223,2]
[364525223,1749126657837,-500.0,0.00021223,2]
[364525224,1749126657846,-267.00703625,0.00021223,2]
[364525225,1749126657855,-500.0,0.00021223,2]
[364525226,1749126657864,-500.0,0.00021223,2]
[364525227,1749126657874,-500.0,0.00021223,2]
[364525228,1749126657883,-504.67081318,0.00021223,2]
[364525229,1749126657893,-500.0,0.00021295,2]
[364525230,1749126657902,-500.24804547,0.00021295,2]
[364525231,1749126657910,-513.98861648,0.00021295,2]
[364525232,1749126657921,-600.0,0.00021295,2]
[364525233,1749126657930,-500.0,0.00021295,2]
[364525234,1749126657939,-500.0,0.00021295,2]
[364525235,1749126657949,-500.91748917,0.00021295,2]
[364525236,1749126657958,-500.0,0.00021295,2]
[364525237,1749126657968,-2007.43511669,0.0002136,2]
[364525238,1749126657977,-440.0,0.00021369,2]
[364525239,1749126657987,-488.16,0.00021369,2]
[364525240,1749126657997,-1078.06,0.00021369,2]
[364525241,1749126658007,-440.0,0.00021369,2]
[364525242,1749126658016,-759.89,0.00021369,2]
[364525243,1749126658026,-440.0,0.00021369,2]
[364525244,1749126658035,-543.28,0.00021369,2]
[364525245,1749126658044,-469.06,0.00021369,2]
[364525246,1749126658054,-2040.51,0.00021369,2]
[364525247,1749126658063,-440.0,0.00021369,2]
[364525248,1749126658073,-440.0,0.00021369,2]
[364525249,1749126658083,-3404.87,0.00021369,2]
[364525250,1749126658093,-2840.11,0.00021369,2]
[364525251,1749126658102,-440.0,0.00021369,2]
[364525252,1749126658112,-440.0,0.00021369,2]
[364525253,1749126658121,-1060.39,0.00021369,2]
[364525254,1749126658132,-1617.19,0.00021369,2]
[364525255,1749126658141,-440.0,0.00021369,2]
[364525256,1749126658151,-1389.09,0.00021369,2]
[364525257,1749126658160,-440.0,0.00021369,2]
[364525258,1749126658169,-420.70560515,0.00021369,2]
[364525259,1749126658178,-474.25,0.00021369,2]
[364525260,1749126658188,-582.27,0.00021369,2]
[364525261,1749126658197,-273.35208697,0.00021369,2]
[364525262,1749126658206,-440.0,0.00021369,2]
[364525263,1749126658216,-454.45,0.00021369,2]
[364525264,1749126658224,-3904.28,0.00021369,2]
[364525265,1749126658233,-440.0,0.00021369,2]
[364525266,1749126658242,-440.0,0.00021369,2]
[364525267,1749126658251,-443.09,0.00021369,2]
[364525268,1749126658260,-440.0,0.00021369,2]
[364525269,1749126658269,-440.0,0.00021369,2]
[364525270,1749126658278,-1601.79,0.00021369,2]
[364525271,1749126658288,-440.0,0.00021369,2]
[364525272,1749126658296,-690.08,0.00021369,2]
[364525273,1749126658306,-1463.54,0.00021369,2]
[364525274,1749126658315,-3830.81,0.00021369,2]
[364525275,1749126658324,-500.23,0.00021369,2]
[364525276,1749126658335,-382.25508162,0.00021369,2]
[364525277,1749126658344,-440.0,0.00021369,2]
[364525278,1749126658353,-601.71,0.00021369,2]
[364525279,1749126658363,-440.0,0.00021369,2]
[364525280,1749126658376,-440.0,0.00021369,2]
[364525281,1749126658385,-10825.13,0.00021369,2]
[364525282,1749126658396,-468.23,0.00021369,2]
[364525283,1749126658406,-738.51,0.00021369,2]
[364525284,1749126658416,-869.47,0.00021369,2]
[364525285,1749126658425,-440.0,0.00021369,2]
[364525286,1749126658435,-568.84,0.00021369,2]
[364525287,1749126658444,-440.0,0.00021369,2]
[364525288,1749126658454,-3468.15,0.00021369,2]
[364525289,1749126658464,-440.0,0.00021369,2]
[364525290,1749126658475,-440.0,0.00021369,2]
[364525291,1749126658486,-440.0,0.00021369,2]
[364525292,1749126658497,-665.26,0.00021369,2]
[364525293,1749126658506,-772.56,0.00021369,2]
[364525294,1749126658515,-619.68,0.00021369,2]
[364525295,1749126658524,-691.71,0.00021369,2]
[364525296,1749126658533,-3643.74,0.00021369,2]
[364525297,1749126658543,-2712.99,0.00021369,2]
[364525298,1749126658552,-440.0,0.00021369,2]
[364525299,1749126658561,-440.0,0.00021369,2]
[364525300,1749126658570,-440.59528938,0.00021369,2]
[364525301,1749126658579,-290.5261177,0.0002139,2]
[364525302,1749126658588,-539.80823797,0.0002139,2]
[364525303,1749126658596,-151.0,0.000214,3]
[364525304,1749126658606,-212.94059491,0.000214,3]
[364525305,1749126658616,-240.0,0.00021428,2]
[364525306,1749126658625,-500.0,0.0002146,2]
[364525307,1749126658634,-500.0,0.0002146,2]
[364525308,1749126658643,-500.0,0.0002146,2]
[364525309,1749126658652,-511.72404302,0.0002146,2]
[364525310,1749126658661,-500.0,0.0002146,2]
[364525311,1749126658670,-213.99632772,0.00021499,2]
[364525312,1749126658680,-12438.1984999,0.000215,2]
[364525313,1749126658689,-151.0,0.00021509,2]
[364525314,1749126658698,-440.0,0.00021643,2]
[364525315,1749126658771,-488.16,0.00021643,2]
[364525316,1749126658781,-1078.06,0.00021643,2]
[364525317,1749126658790,-460.9,0.00021643,2]
[364525318,1749126658799,-759.89,0.00021643,2]
[364525319,1749126658808,-440.0,0.00021643,2]
[364525320,1749126658817,-543.28,0.00021643,2]
[364525321,1749126658827,-469.06,0.00021643,2]
[364525322,1749126658836,-2040.51,0.00021643,2]
[364525323,1749126658845,-440.0,0.00021643,2]
[364525324,1749126658854,-312.62,0.00021643,2]
[364525325,1749126658863,-3404.87,0.00021643,2]
[364525326,1749126658872,-2840.11,0.00021643,2]
[364525327,1749126658881,-440.0,0.00021643,2]
[364525328,1749126658890,-336.82,0.00021643,2]
[364525329,1749126658899,-1060.39,0.00021643,2]
[364525330,1749126658909,-1617.19,0.00021643,2]
[364525331,1749126658919,-1389.09,0.00021643,2]
[364525332,1749126658928,-440.0,0.00021643,2]
[364525333,1749126658937,-474.25,0.00021643,2]
[364525334,1749126658946,-582.27,0.00021643,2]
[364525335,1749126658955,-454.45,0.00021643,2]
[364525336,1749126658964,-3904.28,0.00021643,2]
[364525337,1749126658974,-440.0,0.00021643,2]
[364525338,1749126658984,-440.0,0.00021643,2]
[364525339,1749126658993,-443.09,0.00021643,2]
[364525340,1749126659003,-440.0,0.00021643,2]
[364525341,1749126659012,-440.0,0.00021643,2]
[364525342,1749126659021,-1601.79,0.00021643,2]
[364525343,1749126659031,-440.0,0.00021643,2]
[364525344,1749126659041,-324.245001,0.00021643,2]
[364525345,1749126659050,-324.245001,0.00021643,2]
[364525346,1749126659060,-690.08,0.00021643,2]
[364525347,1749126659069,-1463.54,0.00021643,2]
[364525348,1749126659079,-3830.81,0.00021643,2]
[364525349,1749126659089,-500.23,0.00021643,2]
[364525350,1749126659099,-440.0,0.00021643,2]
[364525351,1749126659109,-601.71,0.00021643,2]
[364525352,1749126659119,-440.0,0.00021643,2]
[364525353,1749126659128,-440.0,0.00021643,2]
[364525354,1749126659138,-10825.13,0.00021643,2]
[364525355,1749126659147,-468.23,0.00021643,2]
[364525356,1749126659157,-738.51,0.00021643,2]
[364525357,1749126659167,-869.47,0.00021643,2]
[364525358,1749126659176,-440.0,0.00021643,2]
[364525359,1749126659185,-568.84,0.00021643,2]
[364525360,1749126659195,-440.0,0.00021643,2]
[364525361,1749126659206,-3468.15,0.00021643,2]
[364525362,1749126659215,-440.0,0.00021643,2]
[364525363,1749126659225,-440.0,0.00021643,2]
[364525364,1749126659235,-440.0,0.00021643,2]
[364525365,1749126659244,-665.26,0.00021643,2]
[364525366,1749126659254,-772.56,0.00021643,2]
[364525367,1749126659264,-691.71,0.00021643,2]
[364525368,1749126659284,-619.68,0.00021643,2]
[364525369,1749126659299,-3643.74,0.00021643,2]
[364525370,1749126659317,-2712.99,0.00021643,2]
[364525371,1749126659335,-440.0,0.00021643,2]
[364525372,1749126659353,-440.0,0.00021643,2]
[364525373,1749126659373,-1688.0,0.00021686,2]
[364525374,1749126659392,-207.4,0.00021686,2]
[364525375,1749126659407,-1778.07644723,0.00021688,2]